[Event "Titled Tuesday Blitz November 01 Late 2022"]
[White "Curtis, John"]
[Black "Clawitter, Craig"]
[WhiteFideId "3200256"]
[BlackFideId "2023105"]
[WhiteElo "2203"]
[BlackElo "2322"]
[Result "0-1"]
[Round "04"]
[TimeControl "180+1"]
[Date "2022.11.02"]
[WhiteClock "0:00:11"]
[BlackClock "0:00:07"]

1. e4 {[%clk 0:03:00]}  e6 {[%clk 0:02:59]} 2. d4 {[%clk 0:02:59]}  d5 {[%clk 0:02:59]} 3. exd5 {[%clk 0:02:55]}  exd5 {[%clk 0:03:00]} 4. c4 {[%clk 0:02:55]}  Nf6 {[%clk 0:02:58]} 5. cxd5 {[%clk 0:02:52]}  Nxd5 {[%clk 0:02:54]} 6. Bc4 {[%clk 0:02:52]}  Bb4+ {[%clk 0:02:48]} 7. Bd2 {[%clk 0:02:49]}  Bxd2+ {[%clk 0:02:46]} 8. Qxd2 {[%clk 0:02:49]}  Nc6 {[%clk 0:02:46]} 9. Nf3 {[%clk 0:02:43]}  O-O {[%clk 0:02:44]} 10. O-O {[%clk 0:02:42]}  Nb6 {[%clk 0:02:18]} 11. Be2 {[%clk 0:02:33]}  Bg4 {[%clk 0:02:17]} 12. Rd1 {[%clk 0:02:24]}  Re8 {[%clk 0:02:09]} 13. Nc3 {[%clk 0:02:24]}  Qf6 {[%clk 0:02:00]} 14. h3 {[%clk 0:02:16]}  Bh5 {[%clk 0:01:48]} 15. d5 {[%clk 0:01:53]}  Bxf3 {[%clk 0:01:30]} 16. Bxf3 {[%clk 0:01:47]}  Ne5 {[%clk 0:01:31]} 17. Be2 {[%clk 0:01:43]}  Rad8 {[%clk 0:01:25]} 18. Qc2 {[%clk 0:01:33]}  Ng6 {[%clk 0:01:12]} 19. a4 {[%clk 0:01:20]}  Nf4 {[%clk 0:01:07]} 20. Bb5 {[%clk 0:01:15]}  Re5 {[%clk 0:00:47]} 21. a5 {[%clk 0:01:04]}  Nbxd5 {[%clk 0:00:42]} 22. Nxd5 {[%clk 0:01:02]}  Nxd5 {[%clk 0:00:20]} 23. a6 {[%clk 0:00:56]}  c6 {[%clk 0:00:14]} 24. Bf1 {[%clk 0:00:42]}  b6 {[%clk 0:00:14]} 25. Rac1 {[%clk 0:00:27]}  Re6 {[%clk 0:00:14]} 26. Bc4 {[%clk 0:00:19]}  Red6 {[%clk 0:00:13]} 27. Bxd5 {[%clk 0:00:19]}  Rxd5 {[%clk 0:00:12]} 28. Rxd5 {[%clk 0:00:18]}  cxd5 {[%clk 0:00:11]} 29. Qc7 {[%clk 0:00:14]}  h6 {[%clk 0:00:10]} 30. Qxa7 {[%clk 0:00:13]}  Qxb2 {[%clk 0:00:10]} 31. Rd1 {[%clk 0:00:13]}  d4 {[%clk 0:00:09]} 32. Qc7 {[%clk 0:00:10]}  Rf8 {[%clk 0:00:07]} 33. Qd6 {[%clk 0:00:10]}  Qc2 {[%clk 0:00:05]} 34. Rxd4 {[%clk 0:00:08]}  Qc5 {[%clk 0:00:06]} 35. a7 {[%clk 0:00:04]}  Qxd6 {[%clk 0:00:05]} 36. Rxd6 {[%clk 0:00:03]}  Ra8 {[%clk 0:00:04]} 37. Rxb6 {[%clk 0:00:03]}  Rxa7 {[%clk 0:00:05]} 38. Rb8+ {[%clk 0:00:02]}  Kh7 {[%clk 0:00:05]} 39. Rb1 {[%clk 0:00:02]}  Kg6 {[%clk 0:00:06]} 40. Rf1 {[%clk 0:00:03]}  f5 {[%clk 0:00:06]} 41. g3 {[%clk 0:00:04]}  Ra2 {[%clk 0:00:07]} 42. Kg2 {[%clk 0:00:04]}  f4 {[%clk 0:00:07]} 43. Kg1 {[%clk 0:00:05]}  fxg3 {[%clk 0:00:07]} 44. Kg2 {[%clk 0:00:06]}  gxf2 {[%clk 0:00:07]} 45. Rxf2 {[%clk 0:00:05]}  Rxf2+ {[%clk 0:00:07]} 46. Kxf2 {[%clk 0:00:06]}  Kf5 {[%clk 0:00:07]} 47. Kg3 {[%clk 0:00:07]}  g5 {[%clk 0:00:07]} 48. h4 {[%clk 0:00:08]}  g4 {[%clk 0:00:06]} 49. h5 {[%clk 0:00:08]}  Kg5 {[%clk 0:00:06]} 50. Kg2 {[%clk 0:00:08]}  Kxh5 {[%clk 0:00:06]} 51. Kh2 {[%clk 0:00:09]}  Kg5 {[%clk 0:00:07]} 52. Kg2 {[%clk 0:00:10]}  Kf4 {[%clk 0:00:07]} 53. Kh2 {[%clk 0:00:11]}  Kf3 {[%clk 0:00:07]} 54. Kh1 {[%clk 0:00:10]}  g3 {[%clk 0:00:06]} 55. Kg1 {[%clk 0:00:10]}  g2 {[%clk 0:00:06]} 56. Kh2 {[%clk 0:00:10]}  Kf2 {[%clk 0:00:06]} 57. Kh3 {[%clk 0:00:11]}  g1=Q {[%clk 0:00:06]} 58. Kh4 {[%clk 0:00:10]}  Qg5+ {[%clk 0:00:07]} 59. Kh3 {[%clk 0:00:11]}  Qg3# {[%clk 0:00:07]} 0-1


[Site "https://www.chess.com"]

[Event "Titled Tuesday Blitz November 01 Late 2022"]
[White "Dahlgren, James Allen"]
[Black "Zilleruelo Irizarry, Diego"]
[WhiteFideId "22256873"]
[BlackFideId "3101460"]
[WhiteElo "2216"]
[BlackElo "1998"]
[Result "0-1"]
[Round "04"]
[TimeControl "180+1"]
[Date "2022.11.02"]
[WhiteClock "0:01:39"]
[BlackClock "0:01:45"]

1. e4 {[%clk 0:03:00]}  c6 {[%clk 0:03:00]} 2. Nc3 {[%clk 0:03:01]}  d5 {[%clk 0:03:01]} 3. f3 {[%clk 0:02:52]}  e5 {[%clk 0:02:58]} 4. d4 {[%clk 0:02:49]}  dxe4 {[%clk 0:02:52]} 5. dxe5 {[%clk 0:02:44]}  Qxd1+ {[%clk 0:02:51]} 6. Kxd1 {[%clk 0:02:42]}  exf3 {[%clk 0:02:41]} 7. Nxf3 {[%clk 0:02:43]}  Bg4 {[%clk 0:02:41]} 8. Bf4 {[%clk 0:02:32]}  Nd7 {[%clk 0:02:39]} 9. Bd3 {[%clk 0:02:22]}  Ne7 {[%clk 0:02:38]} 10. Ke2 {[%clk 0:02:21]}  Ng6 {[%clk 0:02:36]} 11. Bg3 {[%clk 0:02:14]}  Ngxe5 {[%clk 0:02:33]} 12. Rhe1 {[%clk 0:02:13]}  O-O-O {[%clk 0:02:28]} 13. Bxe5 {[%clk 0:02:07]}  Nxe5 {[%clk 0:02:27]} 14. Kf2 {[%clk 0:02:07]}  Nxd3+ {[%clk 0:02:26]} 15. cxd3 {[%clk 0:02:08]}  Bxf3 {[%clk 0:02:24]} 16. gxf3 {[%clk 0:02:07]}  Rxd3 {[%clk 0:02:22]} 17. Re8+ {[%clk 0:02:04]}  Kd7 {[%clk 0:02:23]} 18. Re4 {[%clk 0:01:49]}  Bc5+ {[%clk 0:02:18]} 19. Ke2 {[%clk 0:01:49]}  Rd6 {[%clk 0:02:12]} 20. Rc4 {[%clk 0:01:48]}  Re8+ {[%clk 0:02:10]} 21. Ne4 {[%clk 0:01:48]}  Rd5 {[%clk 0:01:53]} 22. Rd1 {[%clk 0:01:39]}  Bb6 {[%clk 0:01:45]} 0-1


[Site "https://www.chess.com"]

[Event "Titled Tuesday Blitz November 01 Late 2022"]
[White "Dehtiarov, Roman"]
[Black "Martinez Alcantara, Jose Eduardo"]
[WhiteFideId "14186640"]
[BlackFideId "3805662"]
[WhiteElo "2200"]
[BlackElo "2703"]
[Result "0-1"]
[Round "04"]
[TimeControl "180+1"]
[Date "2022.11.01"]
[WhiteClock "0:01:24"]
[BlackClock "0:02:32"]

1. e4 {[%clk 0:03:00]}  c5 {[%clk 0:02:59]} 2. Nc3 {[%clk 0:03:00]}  d6 {[%clk 0:03:00]} 3. f4 {[%clk 0:03:01]}  e6 {[%clk 0:03:00]} 4. Nf3 {[%clk 0:03:01]}  a6 {[%clk 0:03:00]} 5. g3 {[%clk 0:02:59]}  Nf6 {[%clk 0:03:00]} 6. Bg2 {[%clk 0:02:59]}  Be7 {[%clk 0:03:01]} 7. O-O {[%clk 0:02:59]}  O-O {[%clk 0:03:02]} 8. d3 {[%clk 0:02:59]}  Nc6 {[%clk 0:03:01]} 9. h3 {[%clk 0:02:58]}  Qc7 {[%clk 0:03:01]} 10. Be3 {[%clk 0:02:58]}  b5 {[%clk 0:03:01]} 11. Ne2 {[%clk 0:02:58]}  d5 {[%clk 0:03:00]} 12. e5 {[%clk 0:02:57]}  Nd7 {[%clk 0:03:01]} 13. g4 {[%clk 0:02:57]}  Bb7 {[%clk 0:03:01]} 14. d4 {[%clk 0:02:57]}  cxd4 {[%clk 0:03:00]} 15. Nexd4 {[%clk 0:02:56]}  Nxd4 {[%clk 0:02:57]} 16. Nxd4 {[%clk 0:02:57]}  Nc5 {[%clk 0:02:57]} 17. c3 {[%clk 0:02:56]}  Rae8 {[%clk 0:02:56]} 18. f5 {[%clk 0:02:46]}  exf5 {[%clk 0:02:45]} 19. Nxf5 {[%clk 0:02:39]}  Ne4 {[%clk 0:02:44]} 20. Bd4 {[%clk 0:02:35]}  Bc5 {[%clk 0:02:37]} 21. Kh1 {[%clk 0:02:00]}  g6 {[%clk 0:02:32]} 22. Nh6+ {[%clk 0:01:54]}  Kg7 {[%clk 0:02:31]} 23. Nxf7 {[%clk 0:01:30]}  Ng3+ {[%clk 0:02:31]} 24. Kg1 {[%clk 0:01:28]}  Bxd4+ {[%clk 0:02:31]} 25. Qxd4 {[%clk 0:01:29]}  Ne2+ {[%clk 0:02:31]} 26. Kh2 {[%clk 0:01:24]}  Nxd4 {[%clk 0:02:32]} 27. Ng5 {[%clk 0:01:24]}  Qxe5+ {[%clk 0:02:32]} 0-1


[Site "https://www.chess.com"]

[Event "Titled Tuesday Blitz November 01 Late 2022"]
[White "Diaz Rosas, Julio Cesar"]
[Black "Rios Escobar, Adan"]
[WhiteFideId "5105099"]
[BlackFideId "3403645"]
[WhiteElo "2246"]
[BlackElo "2360"]
[Result "1-0"]
[Round "04"]
[TimeControl "180+1"]
[Date "2022.11.02"]
[WhiteClock "0:00:17"]
[BlackClock "0:00:22"]

1. d4 {[%clk 0:03:00]}  Nf6 {[%clk 0:02:59]} 2. c4 {[%clk 0:03:00]}  g6 {[%clk 0:02:59]} 3. Nc3 {[%clk 0:03:01]}  Bg7 {[%clk 0:03:00]} 4. e4 {[%clk 0:03:00]}  d6 {[%clk 0:03:00]} 5. Nge2 {[%clk 0:03:01]}  a6 {[%clk 0:02:54]} 6. a4 {[%clk 0:02:58]}  Nc6 {[%clk 0:02:30]} 7. d5 {[%clk 0:02:52]}  Nb4 {[%clk 0:02:25]} 8. Ng3 {[%clk 0:02:45]}  h5 {[%clk 0:02:22]} 9. Be2 {[%clk 0:02:43]}  h4 {[%clk 0:02:20]} 10. Nf1 {[%clk 0:02:42]}  h3 {[%clk 0:02:18]} 11. g3 {[%clk 0:02:42]}  c5 {[%clk 0:02:11]} 12. f3 {[%clk 0:02:33]}  Bd7 {[%clk 0:01:48]} 13. Be3 {[%clk 0:02:27]}  Qc7 {[%clk 0:01:47]} 14. g4 {[%clk 0:02:20]}  Qa5 {[%clk 0:01:39]} 15. Ng3 {[%clk 0:02:16]}  O-O-O {[%clk 0:01:30]} 16. O-O {[%clk 0:02:13]}  Kb8 {[%clk 0:01:24]} 17. f4 {[%clk 0:02:09]}  Qc7 {[%clk 0:01:22]} 18. a5 {[%clk 0:02:07]}  e6 {[%clk 0:01:19]} 19. e5 {[%clk 0:01:59]}  Ne8 {[%clk 0:01:10]} 20. exd6 {[%clk 0:01:49]}  Nxd6 {[%clk 0:01:10]} 21. Qd2 {[%clk 0:01:45]}  Bd4 {[%clk 0:01:03]} 22. Bxd4 {[%clk 0:01:31]}  cxd4 {[%clk 0:01:04]} 23. Na4 {[%clk 0:01:16]}  d3 {[%clk 0:00:35]} 24. Qxb4 {[%clk 0:01:10]}  dxe2 {[%clk 0:00:35]} 25. Rfc1 {[%clk 0:01:11]}  Rh4 {[%clk 0:00:26]} 26. c5 {[%clk 0:01:00]}  Nb5 {[%clk 0:00:26]} 27. c6 {[%clk 0:00:56]}  Bc8 {[%clk 0:00:18]} 28. Nc5 {[%clk 0:00:43]}  Rxg4 {[%clk 0:00:17]} 29. cxb7 {[%clk 0:00:43]}  e1=Q+ {[%clk 0:00:16]} 30. Rxe1 {[%clk 0:00:40]}  Bxb7 {[%clk 0:00:16]} 31. Rac1 {[%clk 0:00:37]}  Rxf4 {[%clk 0:00:15]} 32. Nd7+ {[%clk 0:00:23]}  Ka8 {[%clk 0:00:05]} 33. Rxc7 {[%clk 0:00:16]}  Rxb4 {[%clk 0:00:04]} 34. Nb6+ {[%clk 0:00:15]}  Ka7 {[%clk 0:00:04]} 35. Rxf7 {[%clk 0:00:15]}  exd5 {[%clk 0:00:04]} 36. Ree7 {[%clk 0:00:14]}  Nd6 {[%clk 0:00:04]} 37. Rf2 {[%clk 0:00:10]}  Rxb6 {[%clk 0:00:04]} 38. axb6+ {[%clk 0:00:09]}  Kxb6 {[%clk 0:00:05]} 39. Re6 {[%clk 0:00:09]}  g5 {[%clk 0:00:04]} 40. Rc2 {[%clk 0:00:08]}  Ka7 {[%clk 0:00:03]} 41. Rg6 {[%clk 0:00:08]}  Nb5 {[%clk 0:00:03]} 42. Rd2 {[%clk 0:00:08]}  d4 {[%clk 0:00:03]} 43. Rxg5 {[%clk 0:00:08]}  d3 {[%clk 0:00:04]} 44. Rg7 {[%clk 0:00:08]}  Kb6 {[%clk 0:00:04]} 45. Kf2 {[%clk 0:00:09]}  Rf8+ {[%clk 0:00:03]} 46. Ke3 {[%clk 0:00:09]}  Rd8 {[%clk 0:00:04]} 47. Nf5 {[%clk 0:00:09]}  Nc7 {[%clk 0:00:02]} 48. Rg6+ {[%clk 0:00:09]}  Ka5 {[%clk 0:00:03]} 49. Nd6 {[%clk 0:00:09]}  Nd5+ {[%clk 0:00:03]} 50. Kd4 {[%clk 0:00:09]}  Bc6 {[%clk 0:00:03]} 51. Kc5 {[%clk 0:00:09]}  Ba8 {[%clk 0:00:02]} 52. Rxd3 {[%clk 0:00:09]}  Nb6 {[%clk 0:00:02]} 53. Rg5 {[%clk 0:00:09]}  Na4+ {[%clk 0:00:03]} 54. Kd4+ {[%clk 0:00:09]}  Kb6 {[%clk 0:00:03]} 55. Ke5 {[%clk 0:00:09]}  Nc5 {[%clk 0:00:03]} 56. Rd4 {[%clk 0:00:10]}  Nd7+ {[%clk 0:00:04]} 57. Ke6 {[%clk 0:00:09]}  Bc6 {[%clk 0:00:04]} 58. Ke7 {[%clk 0:00:09]}  Nc5 {[%clk 0:00:04]} 59. Kxd8 {[%clk 0:00:09]}  Ne6+ {[%clk 0:00:04]} 60. Ke7 {[%clk 0:00:08]}  Nxd4 {[%clk 0:00:05]} 61. Rh5 {[%clk 0:00:08]}  Nf3 {[%clk 0:00:04]} 62. Rxh3 {[%clk 0:00:07]}  Ng5 {[%clk 0:00:05]} 63. Rb3+ {[%clk 0:00:08]}  Kc5 {[%clk 0:00:05]} 64. Kf6 {[%clk 0:00:08]}  Nf3 {[%clk 0:00:05]} 65. Nf5 {[%clk 0:00:07]}  Nxh2 {[%clk 0:00:04]} 66. Rc3+ {[%clk 0:00:07]}  Kd5 {[%clk 0:00:04]} 67. Ne7+ {[%clk 0:00:07]}  Kd4 {[%clk 0:00:03]} 68. Rxc6 {[%clk 0:00:07]}  Ng4+ {[%clk 0:00:03]} 69. Kg7 {[%clk 0:00:07]}  Ne5 {[%clk 0:00:03]} 70. Rxa6 {[%clk 0:00:08]}  Kc4 {[%clk 0:00:03]} 71. Ra7 {[%clk 0:00:07]}  Kb3 {[%clk 0:00:03]} 72. Rb7+ {[%clk 0:00:07]}  Ka4 {[%clk 0:00:04]} 73. Nd5 {[%clk 0:00:07]}  Ka5 {[%clk 0:00:03]} 74. Nc3 {[%clk 0:00:07]}  Nd3 {[%clk 0:00:02]} 75. Rb8 {[%clk 0:00:06]}  Ka6 {[%clk 0:00:03]} 76. Kf6 {[%clk 0:00:06]}  Nc5 {[%clk 0:00:02]} 77. Kf5 {[%clk 0:00:06]}  Nd7 {[%clk 0:00:02]} 78. Rd8 {[%clk 0:00:05]}  Nc5 {[%clk 0:00:02]} 79. Rd6+ {[%clk 0:00:06]}  Kb7 {[%clk 0:00:02]} 80. Rh6 {[%clk 0:00:07]}  Nd3 {[%clk 0:00:02]} 81. Ke4 {[%clk 0:00:07]}  Nc5+ {[%clk 0:00:03]} 82. Kd5 {[%clk 0:00:07]}  Nb3 {[%clk 0:00:04]} 83. Rh7+ {[%clk 0:00:07]}  Kb6 {[%clk 0:00:03]} 84. Ne4 {[%clk 0:00:08]}  Nc1 {[%clk 0:00:03]} 85. Rh6+ {[%clk 0:00:08]}  Kb5 {[%clk 0:00:03]} 86. Kd4 {[%clk 0:00:09]}  Ne2+ {[%clk 0:00:03]} 87. Kd3 {[%clk 0:00:09]}  Nf4+ {[%clk 0:00:04]} 88. Kc2 {[%clk 0:00:09]}  Nd5 {[%clk 0:00:04]} 89. Rh5 {[%clk 0:00:09]}  Kc4 {[%clk 0:00:05]} 90. Rxd5 {[%clk 0:00:10]}  Kxd5 {[%clk 0:00:05]} 91. Nc3+ {[%clk 0:00:10]}  Kc4 {[%clk 0:00:06]} 92. b3+ {[%clk 0:00:11]}  Kb4 {[%clk 0:00:06]} 93. Kb2 {[%clk 0:00:11]}  Kc5 {[%clk 0:00:07]} 94. Ka3 {[%clk 0:00:12]}  Kb6 {[%clk 0:00:08]} 95. Kb4 {[%clk 0:00:12]}  Ka6 {[%clk 0:00:09]} 96. Kc5 {[%clk 0:00:13]}  Kb7 {[%clk 0:00:09]} 97. Kb5 {[%clk 0:00:13]}  Kc7 {[%clk 0:00:10]} 98. Ka6 {[%clk 0:00:12]}  Kc8 {[%clk 0:00:10]} 99. Kb6 {[%clk 0:00:12]}  Kb8 {[%clk 0:00:11]} 100. b4 {[%clk 0:00:13]}  Ka8 {[%clk 0:00:12]} 101. Kc7 {[%clk 0:00:13]}  Ka7 {[%clk 0:00:12]} 102. b5 {[%clk 0:00:13]}  Ka8 {[%clk 0:00:13]} 103. Ne4 {[%clk 0:00:13]}  Ka7 {[%clk 0:00:13]} 104. b6+ {[%clk 0:00:13]}  Ka6 {[%clk 0:00:14]} 105. b7 {[%clk 0:00:14]}  Kb5 {[%clk 0:00:15]} 106. b8=Q+ {[%clk 0:00:14]}  Kc4 {[%clk 0:00:16]} 107. Qe8 {[%clk 0:00:15]}  Kd5 {[%clk 0:00:17]} 108. Kd7 {[%clk 0:00:15]}  Kd4 {[%clk 0:00:17]} 109. Qe6 {[%clk 0:00:16]}  Kd3 {[%clk 0:00:18]} 110. Nf6 {[%clk 0:00:16]}  Kd2 {[%clk 0:00:18]} 111. Kd6 {[%clk 0:00:17]}  Kc3 {[%clk 0:00:19]} 112. Qg4 {[%clk 0:00:17]}  Kb3 {[%clk 0:00:19]} 113. Kc5 {[%clk 0:00:17]}  Kc3 {[%clk 0:00:19]} 114. Qe4 {[%clk 0:00:17]}  Kb2 {[%clk 0:00:20]} 115. Qe3 {[%clk 0:00:17]}  Kb1 {[%clk 0:00:21]} 116. Kb4 {[%clk 0:00:17]}  Ka1 {[%clk 0:00:22]} 117. Kb3 {[%clk 0:00:17]}  Kb1 {[%clk 0:00:22]} 118. Qe1# {[%clk 0:00:17]} 1-0


[Site "https://www.chess.com"]

[Event "Titled Tuesday Blitz November 01 Late 2022"]
[White "Dimitrov, Atanas"]
[Black "Karas, Marek"]
[WhiteFideId "2901315"]
[BlackFideId "14928558"]
[WhiteElo "2744"]
[BlackElo "2220"]
[Result "1-0"]
[Round "04"]
[TimeControl "180+1"]
[Date "2022.11.02"]
[WhiteClock "0:00:03"]
[BlackClock "0:00:01"]

1. e4 {[%clk 0:03:00]}  e6 {[%clk 0:02:58]} 2. d4 {[%clk 0:03:00]}  d5 {[%clk 0:02:51]} 3. Nd2 {[%clk 0:02:59]}  a6 {[%clk 0:02:50]} 4. Ngf3 {[%clk 0:02:59]}  c5 {[%clk 0:02:50]} 5. exd5 {[%clk 0:02:56]}  exd5 {[%clk 0:02:51]} 6. c3 {[%clk 0:02:53]}  Nf6 {[%clk 0:02:51]} 7. Be2 {[%clk 0:02:49]}  Be7 {[%clk 0:02:51]} 8. O-O {[%clk 0:02:47]}  O-O {[%clk 0:02:47]} 9. dxc5 {[%clk 0:02:47]}  Bxc5 {[%clk 0:02:48]} 10. Nb3 {[%clk 0:02:48]}  Bb6 {[%clk 0:02:46]} 11. Bg5 {[%clk 0:02:44]}  Be6 {[%clk 0:02:35]} 12. Nbd4 {[%clk 0:02:43]}  h6 {[%clk 0:02:34]} 13. Bh4 {[%clk 0:02:41]}  g5 {[%clk 0:02:27]} 14. Bg3 {[%clk 0:02:35]}  Ne4 {[%clk 0:02:26]} 15. Bd3 {[%clk 0:02:28]}  Nxg3 {[%clk 0:02:14]} 16. Nxe6 {[%clk 0:02:23]}  fxe6 {[%clk 0:02:12]} 17. hxg3 {[%clk 0:02:23]}  Nc6 {[%clk 0:02:10]} 18. Qe2 {[%clk 0:02:19]}  Qf6 {[%clk 0:02:09]} 19. Rae1 {[%clk 0:02:14]}  Rae8 {[%clk 0:02:07]} 20. Nh2 {[%clk 0:01:54]}  e5 {[%clk 0:01:51]} 21. Qh5 {[%clk 0:01:43]}  Kg7 {[%clk 0:01:36]} 22. Ng4 {[%clk 0:01:38]}  Qd6 {[%clk 0:01:35]} 23. c4 {[%clk 0:01:08]}  e4 {[%clk 0:01:20]} 24. cxd5 {[%clk 0:01:05]}  exd3 {[%clk 0:00:45]} 25. Rxe8 {[%clk 0:01:01]}  Rxe8 {[%clk 0:00:42]} 26. Qxe8 {[%clk 0:00:59]}  Qxd5 {[%clk 0:00:43]} 27. Ne3 {[%clk 0:00:48]}  Bxe3 {[%clk 0:00:37]} 28. Qxe3 {[%clk 0:00:48]}  Ne5 {[%clk 0:00:33]} 29. b3 {[%clk 0:00:43]}  Kf6 {[%clk 0:00:23]} 30. Rd1 {[%clk 0:00:42]}  Qd6 {[%clk 0:00:12]} 31. f3 {[%clk 0:00:23]}  Kg6 {[%clk 0:00:09]} 32. Kf2 {[%clk 0:00:23]}  Qf6 {[%clk 0:00:08]} 33. Qe4+ {[%clk 0:00:21]}  Kg7 {[%clk 0:00:08]} 34. Qxb7+ {[%clk 0:00:21]}  Kg6 {[%clk 0:00:08]} 35. Qe4+ {[%clk 0:00:21]}  Kg7 {[%clk 0:00:08]} 36. Rd2 {[%clk 0:00:22]}  Qb6+ {[%clk 0:00:06]} 37. Qe3 {[%clk 0:00:21]}  Qf6 {[%clk 0:00:05]} 38. Kg1 {[%clk 0:00:15]}  h5 {[%clk 0:00:03]} 39. Kh2 {[%clk 0:00:10]}  h4 {[%clk 0:00:02]} 40. gxh4 {[%clk 0:00:06]}  gxh4 {[%clk 0:00:03]} 41. Rxd3 {[%clk 0:00:05]}  Nxd3 {[%clk 0:00:02]} 42. Qxd3 {[%clk 0:00:06]}  Qe5+ {[%clk 0:00:03]} 43. Kg1 {[%clk 0:00:06]}  Qe1+ {[%clk 0:00:03]} 44. Qf1 {[%clk 0:00:07]}  Qe3+ {[%clk 0:00:02]} 45. Qf2 {[%clk 0:00:06]}  Qc1+ {[%clk 0:00:02]} 46. Kh2 {[%clk 0:00:06]}  Qf4+ {[%clk 0:00:02]} 47. g3 {[%clk 0:00:06]}  Qe5 {[%clk 0:00:01]} 48. f4 {[%clk 0:00:06]}  Qc3 {[%clk 0:00:01]} 49. gxh4 {[%clk 0:00:06]}  Kf6 {[%clk 0:00:01]} 50. f5 {[%clk 0:00:05]}  Qe5+ {[%clk 0:00:01]} 51. Kh3 {[%clk 0:00:05]}  Qc3+ {[%clk 0:00:01]} 52. Qg3 {[%clk 0:00:06]}  Qd4 {[%clk 0:00:01]} 53. Qg5+ {[%clk 0:00:06]}  Kf7 {[%clk 0:00:01]} 54. Qg6+ {[%clk 0:00:07]}  Kf8 {[%clk 0:00:01]} 55. Qh6+ {[%clk 0:00:05]}  Kf7 {[%clk 0:00:01]} 56. Qe6+ {[%clk 0:00:06]}  Kf8 {[%clk 0:00:02]} 57. Qe2 {[%clk 0:00:04]}  Qc3+ {[%clk 0:00:01]} 58. Kg4 {[%clk 0:00:04]}  Qg7+ {[%clk 0:00:01]} 59. Kf4 {[%clk 0:00:04]}  Qd4+ {[%clk 0:00:01]} 60. Qe4 {[%clk 0:00:04]}  Qd2+ {[%clk 0:00:02]} 61. Ke5 {[%clk 0:00:04]}  Qxa2 {[%clk 0:00:02]} 62. Kf6 {[%clk 0:00:03]}  Qa1+ {[%clk 0:00:01]} 63. Qe5 {[%clk 0:00:03]} 1-0


[Site "https://www.chess.com"]

[Event "Titled Tuesday Blitz November 01 Late 2022"]
[White "Drygalov, Sergey"]
[Black "Zivkovic, Nemanja"]
[WhiteFideId "24171743"]
[BlackFideId "942154"]
[WhiteElo "2528"]
[BlackElo "2372"]
[Result "1-0"]
[Round "04"]
[TimeControl "180+1"]
[Date "2022.11.01"]
[WhiteClock "0:00:05"]
[BlackClock "0:00:08"]

1. d4 {[%clk 0:03:00]}  Nf6 {[%clk 0:02:59]} 2. c4 {[%clk 0:03:00]}  e6 {[%clk 0:03:00]} 3. Nf3 {[%clk 0:03:01]}  b6 {[%clk 0:02:59]} 4. g3 {[%clk 0:03:01]}  Ba6 {[%clk 0:02:58]} 5. Qc2 {[%clk 0:03:00]}  Bb4+ {[%clk 0:02:55]} 6. Bd2 {[%clk 0:02:59]}  Be7 {[%clk 0:02:55]} 7. e4 {[%clk 0:03:00]}  d5 {[%clk 0:02:54]} 8. cxd5 {[%clk 0:02:59]}  Bxf1 {[%clk 0:02:55]} 9. Kxf1 {[%clk 0:02:59]}  exd5 {[%clk 0:02:55]} 10. e5 {[%clk 0:03:00]}  Ne4 {[%clk 0:02:55]} 11. Nc3 {[%clk 0:03:00]}  Nxc3 {[%clk 0:02:51]} 12. bxc3 {[%clk 0:03:00]}  Qd7 {[%clk 0:02:48]} 13. Kg2 {[%clk 0:03:00]}  Nc6 {[%clk 0:02:47]} 14. h4 {[%clk 0:02:59]}  Nd8 {[%clk 0:02:38]} 15. a4 {[%clk 0:02:59]}  Ne6 {[%clk 0:02:32]} 16. a5 {[%clk 0:02:50]}  h6 {[%clk 0:02:23]} 17. h5 {[%clk 0:02:30]}  O-O {[%clk 0:02:21]} 18. Nh4 {[%clk 0:02:26]}  c5 {[%clk 0:02:15]} 19. Nf5 {[%clk 0:02:25]}  Rfd8 {[%clk 0:02:07]} 20. Bxh6 {[%clk 0:01:55]}  gxh6 {[%clk 0:02:06]} 21. Nxh6+ {[%clk 0:01:55]}  Kg7 {[%clk 0:02:01]} 22. Nxf7 {[%clk 0:01:53]}  Kxf7 {[%clk 0:01:54]} 23. Qg6+ {[%clk 0:01:53]}  Kf8 {[%clk 0:01:42]} 24. h6 {[%clk 0:01:54]}  Bf6 {[%clk 0:01:08]} 25. Qxf6+ {[%clk 0:01:06]}  Qf7 {[%clk 0:01:03]} 26. Qh4 {[%clk 0:00:59]}  Kg8 {[%clk 0:01:00]} 27. Qg4+ {[%clk 0:00:12]}  Kh7 {[%clk 0:00:55]} 28. Rh5 {[%clk 0:00:13]}  Rf8 {[%clk 0:00:53]} 29. f4 {[%clk 0:00:11]}  Rg8 {[%clk 0:00:33]} 30. Qf5+ {[%clk 0:00:11]}  Qg6 {[%clk 0:00:33]} 31. Qxg6+ {[%clk 0:00:06]}  Rxg6 {[%clk 0:00:34]} 32. Kf3 {[%clk 0:00:03]}  Rag8 {[%clk 0:00:30]} 33. Rh3 {[%clk 0:00:03]}  Rf8 {[%clk 0:00:27]} 34. Ke3 {[%clk 0:00:03]}  cxd4+ {[%clk 0:00:27]} 35. cxd4 {[%clk 0:00:03]}  Rc8 {[%clk 0:00:16]} 36. axb6 {[%clk 0:00:04]}  axb6 {[%clk 0:00:16]} 37. f5 {[%clk 0:00:04]}  Rc3+ {[%clk 0:00:15]} 38. Kd2 {[%clk 0:00:04]}  Rgxg3 {[%clk 0:00:15]} 39. Rxg3 {[%clk 0:00:04]}  Rxg3 {[%clk 0:00:15]} 40. fxe6 {[%clk 0:00:04]}  Kxh6 {[%clk 0:00:15]} 41. Ra8 {[%clk 0:00:04]}  Rg7 {[%clk 0:00:15]} 42. Rf8 {[%clk 0:00:03]}  Re7 {[%clk 0:00:14]} 43. Rf6+ {[%clk 0:00:04]}  Kg5 {[%clk 0:00:14]} 44. Kc3 {[%clk 0:00:05]}  Rc7+ {[%clk 0:00:09]} 45. Kb3 {[%clk 0:00:05]}  Kh5 {[%clk 0:00:08]} 46. Kb4 {[%clk 0:00:05]}  Kg5 {[%clk 0:00:09]} 47. Kb5 {[%clk 0:00:05]}  Rc4 {[%clk 0:00:08]} 48. e7 {[%clk 0:00:04]}  Rc8 {[%clk 0:00:08]} 49. Kxb6 {[%clk 0:00:05]}  Re8 {[%clk 0:00:08]} 50. Rf7 {[%clk 0:00:05]}  Kg6 {[%clk 0:00:08]} 51. e6 {[%clk 0:00:05]} 1-0


[Site "https://www.chess.com"]